Workbook

Sheet inputs and results
E1: Added pension estimator - for members of nuvos
B2: Please fill in all of the blue boxes and either one or other of the orange boxes
B4: About you
M5: female
E6: What is your date of birth? | M6: male
E8: What is your gender?
C9: =IF(AND(G6="",G12<>""),"You must enter date of birth","") ->  | M9: ="You cannot buy more than "&TEXT('calcs - nuvos'!G3,"£0,000")&" added pension" -> You cannot buy more than £9,200 added pension
B10: About your added pension
E12: How do you want to pay for your Added Pension? | J12: =IF(G12="lump sum"," ","for how many years?") -> for how many years? | M12: lump sum
M13: monthly contributions
E14: What sort of pension do you want to buy? | I14: ='calcs - nuvos'!A30 ->  | M14: pension for self only
M15: pension for self + dependants
B16: Either: | E16: How much do you want to save? | I16: =IF(G12="lump sum"," ","per month") -> per month | J16: =IF(AND(G16<>"",G18<>""),"please enter figures into only one of the orange boxes, leave the other blank","") -> 
B18: Or: | E18: How much pension do you want to buy? | I18: a year | J18: =IF(G18>'calcs - nuvos'!G3,M9," ") -> 
B20: Your results
M21: =IF(G16<>"",1,2) -> 2
E22: =IF(M21=1,"Your savings will buy an annual pension of: ","This pension will cost you: ") -> This pension will cost you: | G22: =IF(G6<>"",'calcs - nuvos'!B28,"") ->  | I22: =IF(AND('calcs - nuvos'!D2="periodicals",'calcs - nuvos'!B4<>"savings"),"per month",IF('calcs - nuvos'!B4="savings"," ","")) -> per month | J22: =IF('calcs - nuvos'!B4="savings",'calcs - nuvos'!A29,"") -> 
B24: Important notes:
B25: 1 | C25: The added pension estimator held on the Civil Service Pension website uses the latest calculation factors. These factors, and therefore the results, may be subject to change in the future.
B26: 2 | C26: Please note that if you do not use the most recent version of the added pension estimator then the results will not be valid. The latest estimator is held on the Civil Service Pension Scheme website: www.civilservicepensionscheme.org.uk | M26: enter a date
B27: 3 | C27: The cost shown is the gross amount. You will normally get income tax relief on these contributions. If you make your payment through payroll the tax relief will be applied automatically. If you make a lump sum purchase by cheque you will have to claim tax relief from HM Revenue & Customs. | M27: 52
B28: 4 | C28: If you have chosen added pension for self and dependants, this will provide a dependants’ pension (paid after death to a surviving wife, husband, civil partner or partner) of 37.5% of your added pension. | M28: 54
B29: 5 | C29: In most circumstances your added pension will come into payment at the same time as your nuvos pension. If you draw your pension before Normal Pension Age (NPA) it will be reduced for early payment. If you carry on working beyond your NPA, your pension will be increased for late payment. | M29: 56
B30: 6 | C30: Added pension will be adjusted in line with prices. | M30: 59
B31: 7 | C31: If you have selected monthly contributions, the estimator assumes that these start from the next 1 April and run for a complete number of years. | M31: 60
B32: 8 | C32: The figures shown are an illustration of the current cost of buying added pension. | M32: 61
B33: 9 | C33: If you have selected monthly contributions, the estimator assumes that these start from the date that your contract starts and run for a complete number of years. You can request to cancel your monthly contributions at any time, but you must continue to make your contributions until the end of the scheme year (31 March). Lump sum purchases are assumed to be made at the contract start date. You cannot buy added pension by lump sum in your first 12 months of scheme membership. | M33: 62
B34: 10 | C34: If you have selected to pay contributions over a number of years, the estimator has taken account of your age increasing over the period and resulting amount of added pension that the current factors will purchase in each future year. However, you should be aware that the factors underlying these calculations are reviewed regularly and the cost of this level of pension may change in the future. | M34: 64
B35: 11 | C35: Your total pension contributions (not just added pension) in any year cannot be more than your salary. | M35: 65
B36: 12 | C36: If you increase your pension savings in any year over the Annual Allowance set by HM Revenue & Customs, you may incur a tax charge. For more information, including examples, see the HM Revenue & Customs website: www.hmrc.gov.uk | M36: 68
B37: 13 | C37: If you want to purchase added pension, the application form is available on the Civil Service Pension Scheme website. | M37: 69
B38: 14 | C38: This is a calculated value at today’s rates.
M39: 72
B40: Disclaimer: | C40: Every effort has been made to make this tool as accurate as possible, but in the event of any differences, the regulations will apply. This tool is based on the nuvos rules current at the time of publication and there is no guarantee that any part of the rules will not change in the future. You should not take anything in this tool as financial advice. You might want to consider contacting an Independent Financial Adviser (IFA) to discuss your retirement planning. You can find tips on finding an IFA by visiting the Financial Conduct Authority website: www.fca.org.uk | M40: 73
C41: To share your views and feedback on this calculator, please complete this short survey.
B42: ="Version 7 (Feb 2022). Printed on "&TEXT(TODAY(),"dd mmmm yyyy") -> Version 7 (Feb 2022). Printed on 22 October 2024
B43: ="'as at' date "&TEXT('calcs - nuvos'!B86,"dd mmmm yyyy") -> 'as at' date 01 April 2025

Sheet calcs - nuvos (hidden)
A2: Chosen contribution type | B2: ='inputs and results'!G12 -> 0 | C2: =IF(D2<>"LS",'inputs and results'!K12,0) -> 0 | D2: =IF(B2="lump sum","LS","periodicals") -> periodicals | F2: AMC rate | G2: ='Variable information'!B3 -> 0
A3: Chosen pension | B3: ='inputs and results'!G14 -> 0 | C3: =IF(B3="pension for self only","self","self+") -> self+ | F3: HMT max | G3: =IF(D2="periodicals",9200,7300) -> 9200
A4: Chosen calculation type | B4: =IF('inputs and results'!G16<>"","savings","target pension") -> target pension
A5: Monetary amount input | B5: =IF(B4="savings",'inputs and results'!G16,'inputs and results'!G18) -> 0
A6: pension age | B6: 65
A7: DOB | B7: ='inputs and results'!G6 -> 00:00:00 | C7: =DATE(B6+YEAR(B7),MONTH(B7),DAY(B7)) -> 1964-12-31 | D7: =IF(MONTH(B7)<=3,0,1) -> 0
A8: Quote date | B8: ='Variable information'!B5 -> 2024-10-22 | C8: =IF(MONTH(B8)<=3,1,0) -> 0 | D8: =DATE(YEAR(B8)+1-C8,4,1) -> 2025-04-01 | E8: =IF(MONTH(D8)<=3,1,0) -> 0
A9: Age at quote date | B9: =ROUNDDOWN((YEAR(B8)-YEAR($B$7)+(B8-DATE(YEAR(B8),MONTH($B$7),DAY($B$7)))/365),0) -> 124 | D9: =ROUNDDOWN(YEAR(D8)-YEAR($B$7)+(D8-DATE(YEAR(D8),MONTH($B$7),DAY($B$7)))/365,0) -> 125
A10: No of 1 Aprils to PA | B10: =MAX(0,YEAR($C$7)-YEAR(B8)+C8+D7-1) -> 0 | D10: =MAX(0,YEAR($C$7)-YEAR(D8)+E8+D7-1) -> 0
A11: m/f | B11: ='inputs and results'!G8 -> 0 | C11: =LEFT(B11) -> 0 | D11: =IF(C3="self+",8,IF(C11="f",5,4)) -> 8 | E11: =IF(C3="self+",7,IF(C11="f",3,2)) -> 7
A12: Lump sum calcs | E12: AMC calc | H12: New Perodical Calc
A13: factor below | B13: =VLOOKUP(INT($B$9),'factors - nuvos'!$A$4:$H$63,$E$11) -> 13.13 | E13: column 1 | F13: =INT(G2) -> 0 | H13: Exact Factor | I13: =VLOOKUP(INT($D$9),'factors - nuvos'!$A$4:$H$63,$D$11) -> 13.92
A14: factor above | B14: =VLOOKUP(INT($B$9)+1,'factors - nuvos'!$A$4:$H$63,$E$11) -> 13.13 | E14: age at quote | F14: =B9 -> 124 | H14: Contribution Factor | I14: =VLOOKUP($D$10,'factors - nuvos'!$J$4:$K$54,2) -> 1
A15: exact factor | B15: =B13 -> 13.13 | C15: =ROUND(B13+(B14-B13)*(B9-INT(B9)),4) -> 13.13 | E15: factor below | F15: =VLOOKUP(INT(F14),'factors - nuvos'!A69:E128,$F$13+2) -> 1 | H15: Exact Factor x Contribution Factor | I15: =I13*I14 -> 13.92
A16: Aprils factor | B16: =VLOOKUP($B$10,'factors - nuvos'!$J$4:$K$54,2) -> 1 | E16: factor above | F16: =VLOOKUP(INT(F14),'factors - nuvos'!A69:E128,F13+3) -> 1 | H16: Monthly Rate | I16: =D21/I15*C2 -> 0
A17: lump sum rate before AMC | B17: =ROUND(B15*B16,4) -> 13.13 | E17: exact factor | F17: =ROUND(F15+(F16-F15)*(G2-INT(G2)),4) -> 1
A18: AMC adjustment | B18: =F17 -> 1
A19: lump sum rate | B19: =ROUND(B17*B18,4) -> 13.13
H20: Max
A21: required level of contribution | B21: =IF(D2="periodicals",'inputs and results'!G16,0) -> 0 | C21: per month | D21: =B21*12 -> 0 | E21: =I16 -> 0 | F21: annual pension | H21: =G3/(12*D22) ->  | I21: per month
B22: =C2 -> 0 | C22: years | D22: =VLOOKUP(B22,A34:G83,7) -> 
B23: =IF(D2="LS",'inputs and results'!G16,0) -> 0 | C23: lump sum | E23: =B23/B19 -> 0 | F23: annual pension | H23: =G3*B19 -> 120796 | I23: Lump sum
A25: required amount of pension 1 | B25: =IF(D2="LS",'inputs and results'!G18,0) -> 0 | C25: pa | E25: =B25*B19 -> 0 | F25: lump sum | H25: =G3 -> 9200 | I25: pension
A26: required pension 2 | B26: =IF(D2="periodicals",'inputs and results'!G18,0) -> 0 | C26: pa | E26: =B26/(D22*12) ->  | F26: per month | H26: =G3 -> 9200
A28: Required answer | B28: =IF(AND(D2="LS",B4="savings"),E23,IF(AND(D2="periodicals",B4="savings"),E21,IF(D2="LS",E25,E26))) ->  | D28: Max | E28: =INDEX(H21:H26,MATCH(B28,E21:E26,0)) ->  | F28: =INDEX(B21:B26,MATCH(B28,E21:E26,0)) -> 
A29: =IF(F28>E28,"The maximum contribution you can pay is "&TEXT(E28,"£#,###.00")&"","") -> 
A30: =IF(C2>D10,"The calculator cannot provide a result based upon the information you have entered. Please contact MyCSP for a quotation.","") -> 
A32: Periodicals calc
A33: Year | B33: factor below | C33: factor above | D33: rate | E33: Aprils | F33: periodicals | G33: cum purchase
A34: 1 | B34: =VLOOKUP(INT($D$9),'factors - nuvos'!$A$4:$H$63,$D$11) -> 13.92 | C34: =VLOOKUP(INT($D$9)+1,'factors - nuvos'!$A$4:$H$63,$D$11) -> 13.92 | D34: =ROUND(B34+(C34-B34)*($B$9-INT($B$9)),4) -> 13.92 | E34: =VLOOKUP($D$10,'factors - nuvos'!$J$4:$K$54,2) -> 1 | F34: =E34*D34 -> 13.92 | G34: =1/F34 -> 0.07183908046
A35: 2 | B35: =VLOOKUP(INT($D$9+A35-1),'factors - nuvos'!$A$4:$H$63,$D$11) -> 13.92 | C35: =VLOOKUP(INT($D$9)+A35,'factors - nuvos'!$A$4:$H$63,$D$11) -> 13.92 | D35: =ROUND(B35+(C35-B35)*($B$9-INT($B$9)),4) -> 13.92 | E35: =VLOOKUP(MAX(1,$D$10+1-A35),'factors - nuvos'!$J$4:$K$54,2) -> 1.02 | F35: =E35*D35 -> 14.1984 | G35: =G34+1/F35 -> 0.1422695515
A36: 3 | B36: =VLOOKUP(INT($D$9+A36-1),'factors - nuvos'!$A$4:$H$63,$D$11) -> 13.92 | C36: =VLOOKUP(INT($D$9)+A36,'factors - nuvos'!$A$4:$H$63,$D$11) -> 13.92 | D36: =ROUND(B36+(C36-B36)*($B$9-INT($B$9)),4) -> 13.92 | E36: =VLOOKUP(MAX(1,$D$10+1-A36),'factors - nuvos'!$J$4:$K$54,2) -> 1.02 | F36: =E36*D36 -> 14.1984 | G36: =G35+1/F36 -> 0.2127000225
A37: 4 | B37: =VLOOKUP(INT($D$9+A37-1),'factors - nuvos'!$A$4:$H$63,$D$11) -> 13.92 | C37: =VLOOKUP(INT($D$9)+A37,'factors - nuvos'!$A$4:$H$63,$D$11) -> 13.92 | D37: 13.92 | E37: =VLOOKUP(MAX(1,$D$10+1-A37),'factors - nuvos'!$J$4:$K$54,2) -> 1.02 | F37: 14.1984 | G37: 0.2831304936
A38: 5 | B38: =VLOOKUP(INT($D$9+A38-1),'factors - nuvos'!$A$4:$H$63,$D$11) -> 13.92 | C38: =VLOOKUP(INT($D$9)+A38,'factors - nuvos'!$A$4:$H$63,$D$11) -> 13.92 | D38: 13.92 | E38: =VLOOKUP(MAX(1,$D$10+1-A38),'factors - nuvos'!$J$4:$K$54,2) -> 1.02 | F38: 14.1984 | G38: 0.3535609646
A39: 6 | B39: =VLOOKUP(INT($D$9+A39-1),'factors - nuvos'!$A$4:$H$63,$D$11) -> 13.92 | C39: =VLOOKUP(INT($D$9)+A39,'factors - nuvos'!$A$4:$H$63,$D$11) -> 13.92 | D39: 13.92 | E39: =VLOOKUP(MAX(1,$D$10+1-A39),'factors - nuvos'!$J$4:$K$54,2) -> 1.02 | F39: 14.1984 | G39: 0.4239914357
A40: 7 | B40: =VLOOKUP(INT($D$9+A40-1),'factors - nuvos'!$A$4:$H$63,$D$11) -> 13.92 | C40: =VLOOKUP(INT($D$9)+A40,'factors - nuvos'!$A$4:$H$63,$D$11) -> 13.92 | D40: 13.92 | E40: =VLOOKUP(MAX(1,$D$10+1-A40),'factors - nuvos'!$J$4:$K$54,2) -> 1.02 | F40: 14.1984 | G40: 0.4944219067
A41: 8 | B41: =VLOOKUP(INT($D$9+A41-1),'factors - nuvos'!$A$4:$H$63,$D$11) -> 13.92 | C41: =VLOOKUP(INT($D$9)+A41,'factors - nuvos'!$A$4:$H$63,$D$11) -> 13.92 | D41: 13.92 | E41: =VLOOKUP(MAX(1,$D$10+1-A41),'factors - nuvos'!$J$4:$K$54,2) -> 1.02 | F41: 14.1984 | G41: 0.5648523777
A42: 9 | B42: =VLOOKUP(INT($D$9+A42-1),'factors - nuvos'!$A$4:$H$63,$D$11) -> 13.92 | C42: =VLOOKUP(INT($D$9)+A42,'factors - nuvos'!$A$4:$H$63,$D$11) -> 13.92 | D42: 13.92 | E42: =VLOOKUP(MAX(1,$D$10+1-A42),'factors - nuvos'!$J$4:$K$54,2) -> 1.02 | F42: 14.1984 | G42: 0.6352828488
A43: 10 | B43: =VLOOKUP(INT($D$9+A43-1),'factors - nuvos'!$A$4:$H$63,$D$11) -> 13.92 | C43: =VLOOKUP(INT($D$9)+A43,'factors - nuvos'!$A$4:$H$63,$D$11) -> 13.92 | D43: 13.92 | E43: =VLOOKUP(MAX(1,$D$10+1-A43),'factors - nuvos'!$J$4:$K$54,2) -> 1.02 | F43: 14.1984 | G43: =G42+1/F43 -> 0.7057133198
A44: 11 | B44: =VLOOKUP(INT($D$9+A44-1),'factors - nuvos'!$A$4:$H$63,$D$11) -> 13.92 | C44: =VLOOKUP(INT($D$9)+A44,'factors - nuvos'!$A$4:$H$63,$D$11) -> 13.92 | D44: 13.92 | E44: =VLOOKUP(MAX(1,$D$10+1-A44),'factors - nuvos'!$J$4:$K$54,2) -> 1.02 | F44: 14.1984 | G44: 0.7761437908
A45: 12 | B45: =VLOOKUP(INT($D$9+A45-1),'factors - nuvos'!$A$4:$H$63,$D$11) -> 13.92 | C45: =VLOOKUP(INT($D$9)+A45,'factors - nuvos'!$A$4:$H$63,$D$11) -> 13.92 | D45: 13.92 | E45: =VLOOKUP(MAX(1,$D$10+1-A45),'factors - nuvos'!$J$4:$K$54,2) -> 1.02 | F45: 14.1984 | G45: 0.8465742619
A46: 13 | B46: =VLOOKUP(INT($D$9+A46-1),'factors - nuvos'!$A$4:$H$63,$D$11) -> 13.92 | C46: =VLOOKUP(INT($D$9)+A46,'factors - nuvos'!$A$4:$H$63,$D$11) -> 13.92 | D46: 13.92 | E46: =VLOOKUP(MAX(1,$D$10+1-A46),'factors - nuvos'!$J$4:$K$54,2) -> 1.02 | F46: 14.1984 | G46: 0.9170047329
A47: 14 | B47: =VLOOKUP(INT($D$9+A47-1),'factors - nuvos'!$A$4:$H$63,$D$11) -> 13.92 | C47: =VLOOKUP(INT($D$9)+A47,'factors - nuvos'!$A$4:$H$63,$D$11) -> 13.92 | D47: 13.92 | E47: =VLOOKUP(MAX(1,$D$10+1-A47),'factors - nuvos'!$J$4:$K$54,2) -> 1.02 | F47: 14.1984 | G47: 0.987435204
A48: 15 | B48: =VLOOKUP(INT($D$9+A48-1),'factors - nuvos'!$A$4:$H$63,$D$11) -> 13.92 | C48: =VLOOKUP(INT($D$9)+A48,'factors - nuvos'!$A$4:$H$63,$D$11) -> 13.92 | D48: 13.92 | E48: =VLOOKUP(MAX(1,$D$10+1-A48),'factors - nuvos'!$J$4:$K$54,2) -> 1.02 | F48: 14.1984 | G48: 1.057865675
A49: 16 | B49: =VLOOKUP(INT($D$9+A49-1),'factors - nuvos'!$A$4:$H$63,$D$11) -> 13.92 | C49: =VLOOKUP(INT($D$9)+A49,'factors - nuvos'!$A$4:$H$63,$D$11) -> 13.92 | D49: 13.92 | E49: =VLOOKUP(MAX(1,$D$10+1-A49),'factors - nuvos'!$J$4:$K$54,2) -> 1.02 | F49: 14.1984 | G49: 1.128296146
A50: 17 | B50: =VLOOKUP(INT($D$9+A50-1),'factors - nuvos'!$A$4:$H$63,$D$11) -> 13.92 | C50: =VLOOKUP(INT($D$9)+A50,'factors - nuvos'!$A$4:$H$63,$D$11) -> 13.92 | D50: 13.92 | E50: =VLOOKUP(MAX(1,$D$10+1-A50),'factors - nuvos'!$J$4:$K$54,2) -> 1.02 | F50: 14.1984 | G50: 1.198726617
A51: 18 | B51: =VLOOKUP(INT($D$9+A51-1),'factors - nuvos'!$A$4:$H$63,$D$11) -> 13.92 | C51: =VLOOKUP(INT($D$9)+A51,'factors - nuvos'!$A$4:$H$63,$D$11) -> 13.92 | D51: 13.92 | E51: =VLOOKUP(MAX(1,$D$10+1-A51),'factors - nuvos'!$J$4:$K$54,2) -> 1.02 | F51: 14.1984 | G51: 1.269157088
A52: 19 | B52: =VLOOKUP(INT($D$9+A52-1),'factors - nuvos'!$A$4:$H$63,$D$11) -> 13.92 | C52: =VLOOKUP(INT($D$9)+A52,'factors - nuvos'!$A$4:$H$63,$D$11) -> 13.92 | D52: 13.92 | E52: =VLOOKUP(MAX(1,$D$10+1-A52),'factors - nuvos'!$J$4:$K$54,2) -> 1.02 | F52: 14.1984 | G52: 1.339587559
A53: 20 | B53: =VLOOKUP(INT($D$9+A53-1),'factors - nuvos'!$A$4:$H$63,$D$11) -> 13.92 | C53: =VLOOKUP(INT($D$9)+A53,'factors - nuvos'!$A$4:$H$63,$D$11) -> 13.92 | D53: 13.92 | E53: =VLOOKUP(MAX(1,$D$10+1-A53),'factors - nuvos'!$J$4:$K$54,2) -> 1.02 | F53: 14.1984 | G53: 1.41001803
A54: 21 | B54: =VLOOKUP(INT($D$9+A54-1),'factors - nuvos'!$A$4:$H$63,$D$11) -> 13.92 | C54: =VLOOKUP(INT($D$9)+A54,'factors - nuvos'!$A$4:$H$63,$D$11) -> 13.92 | D54: 13.92 | E54: =VLOOKUP(MAX(1,$D$10+1-A54),'factors - nuvos'!$J$4:$K$54,2) -> 1.02 | F54: 14.1984 | G54: 1.480448501
A55: 22 | B55: =VLOOKUP(INT($D$9+A55-1),'factors - nuvos'!$A$4:$H$63,$D$11) -> 13.92 | C55: =VLOOKUP(INT($D$9)+A55,'factors - nuvos'!$A$4:$H$63,$D$11) -> 13.92 | D55: 13.92 | E55: =VLOOKUP(MAX(1,$D$10+1-A55),'factors - nuvos'!$J$4:$K$54,2) -> 1.02 | F55: 14.1984 | G55: 1.550878972
A56: 23 | B56: =VLOOKUP(INT($D$9+A56-1),'factors - nuvos'!$A$4:$H$63,$D$11) -> 13.92 | C56: =VLOOKUP(INT($D$9)+A56,'factors - nuvos'!$A$4:$H$63,$D$11) -> 13.92 | D56: 13.92 | E56: =VLOOKUP(MAX(1,$D$10+1-A56),'factors - nuvos'!$J$4:$K$54,2) -> 1.02 | F56: 14.1984 | G56: 1.621309443
A57: 24 | B57: =VLOOKUP(INT($D$9+A57-1),'factors - nuvos'!$A$4:$H$63,$D$11) -> 13.92 | C57: =VLOOKUP(INT($D$9)+A57,'factors - nuvos'!$A$4:$H$63,$D$11) -> 13.92 | D57: 13.92 | E57: =VLOOKUP(MAX(1,$D$10+1-A57),'factors - nuvos'!$J$4:$K$54,2) -> 1.02 | F57: 14.1984 | G57: 1.691739914
A58: 25 | B58: =VLOOKUP(INT($D$9+A58-1),'factors - nuvos'!$A$4:$H$63,$D$11) -> 13.92 | C58: =VLOOKUP(INT($D$9)+A58,'factors - nuvos'!$A$4:$H$63,$D$11) -> 13.92 | D58: 13.92 | E58: =VLOOKUP(MAX(1,$D$10+1-A58),'factors - nuvos'!$J$4:$K$54,2) -> 1.02 | F58: 14.1984 | G58: 1.762170385
A59: 26 | B59: =VLOOKUP(INT($D$9+A59-1),'factors - nuvos'!$A$4:$H$63,$D$11) -> 13.92 | C59: =VLOOKUP(INT($D$9)+A59,'factors - nuvos'!$A$4:$H$63,$D$11) -> 13.92 | D59: 13.92 | E59: =VLOOKUP(MAX(1,$D$10+1-A59),'factors - nuvos'!$J$4:$K$54,2) -> 1.02 | F59: 14.1984 | G59: 1.832600856
A60: 27 | B60: =VLOOKUP(INT($D$9+A60-1),'factors - nuvos'!$A$4:$H$63,$D$11) -> 13.92 | C60: =VLOOKUP(INT($D$9)+A60,'factors - nuvos'!$A$4:$H$63,$D$11) -> 13.92 | D60: 13.92 | E60: =VLOOKUP(MAX(1,$D$10+1-A60),'factors - nuvos'!$J$4:$K$54,2) -> 1.02 | F60: 14.1984 | G60: 1.903031327
A61: 28 | B61: =VLOOKUP(INT($D$9+A61-1),'factors - nuvos'!$A$4:$H$63,$D$11) -> 13.92 | C61: =VLOOKUP(INT($D$9)+A61,'factors - nuvos'!$A$4:$H$63,$D$11) -> 13.92 | D61: 13.92 | E61: =VLOOKUP(MAX(1,$D$10+1-A61),'factors - nuvos'!$J$4:$K$54,2) -> 1.02 | F61: 14.1984 | G61: 1.973461799
A62: 29 | B62: =VLOOKUP(INT($D$9+A62-1),'factors - nuvos'!$A$4:$H$63,$D$11) -> 13.92 | C62: =VLOOKUP(INT($D$9)+A62,'factors - nuvos'!$A$4:$H$63,$D$11) -> 13.92 | D62: 13.92 | E62: =VLOOKUP(MAX(1,$D$10+1-A62),'factors - nuvos'!$J$4:$K$54,2) -> 1.02 | F62: 14.1984 | G62: 2.04389227
A63: 30 | B63: =VLOOKUP(INT($D$9+A63-1),'factors - nuvos'!$A$4:$H$63,$D$11) -> 13.92 | C63: =VLOOKUP(INT($D$9)+A63,'factors - nuvos'!$A$4:$H$63,$D$11) -> 13.92 | D63: 13.92 | E63: =VLOOKUP(MAX(1,$D$10+1-A63),'factors - nuvos'!$J$4:$K$54,2) -> 1.02 | F63: 14.1984 | G63: 2.114322741
A64: 31 | B64: =VLOOKUP(INT($D$9+A64-1),'factors - nuvos'!$A$4:$H$63,$D$11) -> 13.92 | C64: =VLOOKUP(INT($D$9)+A64,'factors - nuvos'!$A$4:$H$63,$D$11) -> 13.92 | D64: =ROUND(B64+(C64-B64)*($B$9-INT($B$9)),4) -> 13.92 | E64: =VLOOKUP(MAX(1,$D$10+1-A64),'factors - nuvos'!$J$4:$K$54,2) -> 1.02 | F64: =E64*D64 -> 14.1984 | G64: =G63+1/F64 -> 2.184753212
A65: 32 | B65: =VLOOKUP(INT($D$9+A65-1),'factors - nuvos'!$A$4:$H$63,$D$11) -> 13.92 | C65: =VLOOKUP(INT($D$9)+A65,'factors - nuvos'!$A$4:$H$63,$D$11) -> 13.92 | D65: 13.92 | E65: =VLOOKUP(MAX(1,$D$10+1-A65),'factors - nuvos'!$J$4:$K$54,2) -> 1.02 | F65: 14.1984 | G65: 2.255183683
A66: 33 | B66: =VLOOKUP(INT($D$9+A66-1),'factors - nuvos'!$A$4:$H$63,$D$11) -> 13.92 | C66: =VLOOKUP(INT($D$9)+A66,'factors - nuvos'!$A$4:$H$63,$D$11) -> 13.92 | D66: 13.92 | E66: =VLOOKUP(MAX(1,$D$10+1-A66),'factors - nuvos'!$J$4:$K$54,2) -> 1.02 | F66: 14.1984 | G66: 2.325614154
A67: 34 | B67: =VLOOKUP(INT($D$9+A67-1),'factors - nuvos'!$A$4:$H$63,$D$11) -> 13.92 | C67: =VLOOKUP(INT($D$9)+A67,'factors - nuvos'!$A$4:$H$63,$D$11) -> 13.92 | D67: 13.92 | E67: =VLOOKUP(MAX(1,$D$10+1-A67),'factors - nuvos'!$J$4:$K$54,2) -> 1.02 | F67: 14.1984 | G67: 2.396044625
A68: 35 | B68: =VLOOKUP(INT($D$9+A68-1),'factors - nuvos'!$A$4:$H$63,$D$11) -> 13.92 | C68: =VLOOKUP(INT($D$9)+A68,'factors - nuvos'!$A$4:$H$63,$D$11) -> 13.92 | D68: 13.92 | E68: =VLOOKUP(MAX(1,$D$10+1-A68),'factors - nuvos'!$J$4:$K$54,2) -> 1.02 | F68: 14.1984 | G68: 2.466475096
A69: 36 | B69: =VLOOKUP(INT($D$9+A69-1),'factors - nuvos'!$A$4:$H$63,$D$11) -> 13.92 | C69: =VLOOKUP(INT($D$9)+A69,'factors - nuvos'!$A$4:$H$63,$D$11) -> 13.92 | D69: 13.92 | E69: =VLOOKUP(MAX(1,$D$10+1-A69),'factors - nuvos'!$J$4:$K$54,2) -> 1.02 | F69: 14.1984 | G69: 2.536905567
A70: 37 | B70: =VLOOKUP(INT($D$9+A70-1),'factors - nuvos'!$A$4:$H$63,$D$11) -> 13.92 | C70: =VLOOKUP(INT($D$9)+A70,'factors - nuvos'!$A$4:$H$63,$D$11) -> 13.92 | D70: 13.92 | E70: =VLOOKUP(MAX(1,$D$10+1-A70),'factors - nuvos'!$J$4:$K$54,2) -> 1.02 | F70: 14.1984 | G70: 2.607336038
A71: 38 | B71: =VLOOKUP(INT($D$9+A71-1),'factors - nuvos'!$A$4:$H$63,$D$11) -> 13.92 | C71: =VLOOKUP(INT($D$9)+A71,'factors - nuvos'!$A$4:$H$63,$D$11) -> 13.92 | D71: 13.92 | E71: =VLOOKUP(MAX(1,$D$10+1-A71),'factors - nuvos'!$J$4:$K$54,2) -> 1.02 | F71: 14.1984 | G71: 2.677766509
A72: 39 | B72: =VLOOKUP(INT($D$9+A72-1),'factors - nuvos'!$A$4:$H$63,$D$11) -> 13.92 | C72: =VLOOKUP(INT($D$9)+A72,'factors - nuvos'!$A$4:$H$63,$D$11) -> 13.92 | D72: 13.92 | E72: =VLOOKUP(MAX(1,$D$10+1-A72),'factors - nuvos'!$J$4:$K$54,2) -> 1.02 | F72: 14.1984 | G72: 2.74819698
A73: 40 | B73: =VLOOKUP(INT($D$9+A73-1),'factors - nuvos'!$A$4:$H$63,$D$11) -> 13.92 | C73: =VLOOKUP(INT($D$9)+A73,'factors - nuvos'!$A$4:$H$63,$D$11) -> 13.92 | D73: 13.92 | E73: =VLOOKUP(MAX(1,$D$10+1-A73),'factors - nuvos'!$J$4:$K$54,2) -> 1.02 | F73: 14.1984 | G73: 2.818627451
A74: 41 | B74: =VLOOKUP(INT($D$9+A74-1),'factors - nuvos'!$A$4:$H$63,$D$11) -> 13.92 | C74: =VLOOKUP(INT($D$9)+A74,'factors - nuvos'!$A$4:$H$63,$D$11) -> 13.92 | D74: 13.92 | E74: =VLOOKUP(MAX(1,$D$10+1-A74),'factors - nuvos'!$J$4:$K$54,2) -> 1.02 | F74: 14.1984 | G74: 2.889057922
A75: 42 | B75: =VLOOKUP(INT($D$9+A75-1),'factors - nuvos'!$A$4:$H$63,$D$11) -> 13.92 | C75: =VLOOKUP(INT($D$9)+A75,'factors - nuvos'!$A$4:$H$63,$D$11) -> 13.92 | D75: 13.92 | E75: =VLOOKUP(MAX(1,$D$10+1-A75),'factors - nuvos'!$J$4:$K$54,2) -> 1.02 | F75: 14.1984 | G75: 2.959488393
A76: 43 | B76: =VLOOKUP(INT($D$9+A76-1),'factors - nuvos'!$A$4:$H$63,$D$11) -> 13.92 | C76: =VLOOKUP(INT($D$9)+A76,'factors - nuvos'!$A$4:$H$63,$D$11) -> 13.92 | D76: 13.92 | E76: =VLOOKUP(MAX(1,$D$10+1-A76),'factors - nuvos'!$J$4:$K$54,2) -> 1.02 | F76: 14.1984 | G76: 3.029918864
A77: 44 | B77: =VLOOKUP(INT($D$9+A77-1),'factors - nuvos'!$A$4:$H$63,$D$11) -> 13.92 | C77: =VLOOKUP(INT($D$9)+A77,'factors - nuvos'!$A$4:$H$63,$D$11) -> 13.92 | D77: 13.92 | E77: =VLOOKUP(MAX(1,$D$10+1-A77),'factors - nuvos'!$J$4:$K$54,2) -> 1.02 | F77: 14.1984 | G77: 3.100349335
A78: 45 | B78: =VLOOKUP(INT($D$9+A78-1),'factors - nuvos'!$A$4:$H$63,$D$11) -> 13.92 | C78: =VLOOKUP(INT($D$9)+A78,'factors - nuvos'!$A$4:$H$63,$D$11) -> 13.92 | D78: 13.92 | E78: =VLOOKUP(MAX(1,$D$10+1-A78),'factors - nuvos'!$J$4:$K$54,2) -> 1.02 | F78: 14.1984 | G78: 3.170779806
A79: 46 | B79: =VLOOKUP(INT($D$9+A79-1),'factors - nuvos'!$A$4:$H$63,$D$11) -> 13.92 | C79: =VLOOKUP(INT($D$9)+A79,'factors - nuvos'!$A$4:$H$63,$D$11) -> 13.92 | D79: =ROUND(B79+(C79-B79)*($B$9-INT($B$9)),4) -> 13.92 | E79: =VLOOKUP(MAX(1,$D$10+1-A79),'factors - nuvos'!$J$4:$K$54,2) -> 1.02 | F79: =E79*D79 -> 14.1984 | G79: =G78+1/F79 -> 3.241210277
A80: 47 | B80: =VLOOKUP(INT($D$9+A80-1),'factors - nuvos'!$A$4:$H$63,$D$11) -> 13.92 | C80: =VLOOKUP(INT($D$9)+A80,'factors - nuvos'!$A$4:$H$63,$D$11) -> 13.92 | D80: =ROUND(B80+(C80-B80)*($B$9-INT($B$9)),4) -> 13.92 | E80: =VLOOKUP(MAX(1,$D$10+1-A80),'factors - nuvos'!$J$4:$K$54,2) -> 1.02 | F80: =E80*D80 -> 14.1984 | G80: =G79+1/F80 -> 3.311640748
A81: 48 | B81: =VLOOKUP(INT($D$9+A81-1),'factors - nuvos'!$A$4:$H$63,$D$11) -> 13.92 | C81: =VLOOKUP(INT($D$9)+A81,'factors - nuvos'!$A$4:$H$63,$D$11) -> 13.92 | D81: =ROUND(B81+(C81-B81)*($B$9-INT($B$9)),4) -> 13.92 | E81: =VLOOKUP(MAX(1,$D$10+1-A81),'factors - nuvos'!$J$4:$K$54,2) -> 1.02 | F81: =E81*D81 -> 14.1984 | G81: =G80+1/F81 -> 3.382071219
A82: 49 | B82: =VLOOKUP(INT($D$9+A82-1),'factors - nuvos'!$A$4:$H$63,$D$11) -> 13.92 | C82: =VLOOKUP(INT($D$9)+A82,'factors - nuvos'!$A$4:$H$63,$D$11) -> 13.92 | D82: =ROUND(B82+(C82-B82)*($B$9-INT($B$9)),4) -> 13.92 | E82: =VLOOKUP(MAX(1,$D$10+1-A82),'factors - nuvos'!$J$4:$K$54,2) -> 1.02 | F82: =E82*D82 -> 14.1984 | G82: =G81+1/F82 -> 3.45250169
A83: 50 | B83: =VLOOKUP(INT($D$9+A83-1),'factors - nuvos'!$A$4:$H$63,$D$11) -> 13.92 | C83: =VLOOKUP(INT($D$9)+A83,'factors - nuvos'!$A$4:$H$63,$D$11) -> 13.92 | D83: =ROUND(B83+(C83-B83)*($B$9-INT($B$9)),4) -> 13.92 | E83: =VLOOKUP(MAX(1,$D$10+1-A83),'factors - nuvos'!$J$4:$K$54,2) -> 1.02 | F83: =E83*D83 -> 14.1984 | G83: =G82+1/F83 -> 3.522932161
A86: as at date | B86: =IF(B2="lump sum",B8,D8) -> 2025-04-01

Sheet Variable information (hidden)
A1: Note: Use AMC yield of 0.00 from July 2012 onwards
A3: AMC yield | B3: 0 | C3: % | D3: 2012-07-01 | F3: 2007-07-30
A5: Quote date | B5: =MAX(TODAY(),$F$3) -> 2024-10-22 | D5: dd/mm/yyyy | E5: Note: uses the later of 30 July 2007 and today's date
A7: HMT max | B7: 9000 | D7: 2009/10

Sheet factors - nuvos (hidden)
B1: Pension for self | G1: Pension for self + partner
B2: lump sum | D2: periodicals | G2: lump sum | H2: periodicals | K2: Revaluation
A3: Age last birthday | B3: Male | C3: female | D3: Male | E3: female | G3: unisex | H3: unisex | J3: no of 1 Aprils to NPA
A4: 16 | J4: 0 | K4: 1
A5: 17 | B5: 2.53 | C5: 2.53 | D5: 3.74 | E5: 3.74 | G5: 2.73 | H5: 4.06 | J5: 1 | K5: 1.02
A6: 18 | B6: 2.64 | C6: 2.64 | D6: 3.87 | E6: 3.87 | G6: 2.85 | H6: 4.21 | J6: 2 | K6: 1.04
A7: 19 | B7: 2.75 | C7: 2.75 | D7: 4.01 | E7: 4.01 | G7: 2.97 | H7: 4.38 | J7: 3 | K7: 1.06
A8: 20 | B8: 2.87 | C8: 2.87 | D8: 4.14 | E8: 4.14 | G8: 3.09 | H8: 4.52 | J8: 4 | K8: 1.08
A9: 21 | B9: 2.98 | C9: 2.98 | D9: 4.28 | E9: 4.28 | G9: 3.22 | H9: 4.68 | J9: 5 | K9: 1.1
A10: 22 | B10: 3.11 | C10: 3.11 | D10: 4.44 | E10: 4.44 | G10: 3.35 | H10: 4.84 | J10: 6 | K10: 1.13
A11: 23 | B11: 3.24 | C11: 3.24 | D11: 4.59 | E11: 4.59 | G11: 3.49 | H11: 5.01 | J11: 7 | K11: 1.15
A12: 24 | B12: 3.37 | C12: 3.37 | D12: 4.75 | E12: 4.75 | G12: 3.64 | H12: 5.18 | J12: 8 | K12: 1.17
A13: 25 | B13: 3.52 | C13: 3.52 | D13: 4.92 | E13: 4.92 | G13: 3.79 | H13: 5.37 | J13: 9 | K13: 1.2
A14: 26 | B14: 3.66 | C14: 3.66 | D14: 5.08 | E14: 5.08 | G14: 3.95 | H14: 5.55 | J14: 10 | K14: 1.22
A15: 27 | B15: 3.82 | C15: 3.82 | D15: 5.26 | E15: 5.26 | G15: 4.11 | H15: 5.74 | J15: 11 | K15: 1.24
A16: 28 | B16: 3.97 | C16: 3.97 | D16: 5.45 | E16: 5.45 | G16: 4.28 | H16: 5.95 | J16: 12 | K16: 1.27
A17: 29 | B17: 4.14 | C17: 4.14 | D17: 5.63 | E17: 5.63 | G17: 4.46 | H17: 6.15 | J17: 13 | K17: 1.29
A18: 30 | B18: 4.31 | C18: 4.31 | D18: 5.82 | E18: 5.82 | G18: 4.65 | H18: 6.36 | J18: 14 | K18: 1.32
A19: 31 | B19: 4.49 | C19: 4.49 | D19: 6.03 | E19: 6.03 | G19: 4.84 | H19: 6.58 | J19: 15 | K19: 1.35
A20: 32 | B20: 4.68 | C20: 4.68 | D20: 6.23 | E20: 6.23 | G20: 5.04 | H20: 6.81 | J20: 16 | K20: 1.37
A21: 33 | B21: 4.87 | C21: 4.87 | D21: 6.45 | E21: 6.45 | G21: 5.25 | H21: 7.05 | J21: 17 | K21: 1.4
A22: 34 | B22: 5.07 | C22: 5.07 | D22: 6.67 | E22: 6.67 | G22: 5.47 | H22: 7.28 | J22: 18 | K22: 1.43
A23: 35 | B23: 5.28 | C23: 5.28 | D23: 6.9 | E23: 6.9 | G23: 5.69 | H23: 7.54 | J23: 19 | K23: 1.46
A24: 36 | B24: 5.5 | C24: 5.5 | D24: 7.13 | E24: 7.13 | G24: 5.92 | H24: 7.79 | J24: 20 | K24: 1.49
A25: 37 | B25: 5.73 | C25: 5.73 | D25: 7.37 | E25: 7.37 | G25: 6.17 | H25: 8.06 | J25: 21 | K25: 1.52
A26: 38 | B26: 5.96 | C26: 5.96 | D26: 7.63 | E26: 7.63 | G26: 6.42 | H26: 8.33 | J26: 22 | K26: 1.55
A27: 39 | B27: 6.21 | C27: 6.21 | D27: 7.88 | E27: 7.88 | G27: 6.68 | H27: 8.61 | J27: 23 | K27: 1.58
A28: 40 | B28: 6.46 | C28: 6.46 | D28: 8.16 | E28: 8.16 | G28: 6.96 | H28: 8.9 | J28: 24 | K28: 1.61
A29: 41 | B29: 6.73 | C29: 6.73 | D29: 8.44 | E29: 8.44 | G29: 7.24 | H29: 9.21 | J29: 25 | K29: 1.64
A30: 42 | B30: 7.01 | C30: 7.01 | D30: 8.72 | E30: 8.72 | G30: 7.54 | H30: 9.52 | J30: 26 | K30: 1.67
A31: 43 | B31: 7.29 | C31: 7.29 | D31: 9.02 | E31: 9.02 | G31: 7.84 | H31: 9.84 | J31: 27 | K31: 1.71
A32: 44 | B32: 7.59 | C32: 7.59 | D32: 9.32 | E32: 9.32 | G32: 8.16 | H32: 10.17 | J32: 28 | K32: 1.74
A33: 45 | B33: 7.9 | C33: 7.9 | D33: 9.64 | E33: 9.64 | G33: 8.5 | H33: 10.52 | J33: 29 | K33: 1.78
A34: 46 | B34: 8.23 | C34: 8.23 | D34: 9.97 | E34: 9.97 | G34: 8.84 | H34: 10.87 | J34: 30 | K34: 1.81
A35: 47 | B35: 8.56 | C35: 8.56 | D35: 10.3 | E35: 10.3 | G35: 9.2 | H35: 11.24 | J35: 31 | K35: 1.85
A36: 48 | B36: 8.91 | C36: 8.91 | D36: 10.65 | E36: 10.65 | G36: 9.57 | H36: 11.62 | J36: 32 | K36: 1.88
A37: 49 | B37: 9.28 | C37: 9.28 | D37: 11.02 | E37: 11.02 | G37: 9.96 | H37: 12.01 | J37: 33 | K37: 1.92
A38: 50 | B38: 9.66 | C38: 9.66 | D38: 11.38 | E38: 11.38 | G38: 10.37 | H38: 12.4 | J38: 34 | K38: 1.96
A39: 51 | B39: 10.06 | C39: 10.06 | D39: 11.77 | E39: 11.77 | G39: 10.79 | H39: 12.82 | J39: 35 | K39: 2
A40: 52 | B40: 10.47 | C40: 10.47 | D40: 12.17 | E40: 12.17 | G40: 11.22 | H40: 13.25 | J40: 36 | K40: 2.04
A41: 53 | B41: 10.9 | C41: 10.9 | D41: 12.59 | E41: 12.59 | G41: 11.68 | H41: 13.7 | J41: 37 | K41: 2.08
A42: 54 | B42: 11.35 | C42: 11.35 | D42: 13.02 | E42: 13.02 | G42: 12.15 | H42: 14.16 | J42: 38 | K42: 2.12
A43: 55 | B43: 11.81 | C43: 11.81 | D43: 13.45 | E43: 13.45 | G43: 12.65 | H43: 14.64 | J43: 39 | K43: 2.16
A44: 56 | B44: 12.3 | C44: 12.3 | D44: 13.92 | E44: 13.92 | G44: 13.16 | H44: 15.13 | J44: 40 | K44: 2.21
A45: 57 | B45: 12.82 | C45: 12.82 | D45: 14.4 | E45: 14.4 | G45: 13.7 | H45: 15.65 | J45: 41 | K45: 2.25
A46: 58 | B46: 13.35 | C46: 13.35 | D46: 14.9 | E46: 14.9 | G46: 14.26 | H46: 16.18 | J46: 42 | K46: 2.3
A47: 59 | B47: 13.91 | C47: 13.91 | D47: 15.42 | E47: 15.42 | G47: 14.85 | H47: 16.73 | J47: 43 | K47: 2.34
A48: 60 | B48: 14.5 | C48: 14.5 | D48: 15.97 | E48: 15.97 | G48: 15.47 | H48: 17.31 | J48: 44 | K48: 2.39
A49: 61 | B49: 15.12 | C49: 15.12 | D49: 16.54 | E49: 16.54 | G49: 16.12 | H49: 17.92 | J49: 45 | K49: 2.44
A50: 62 | B50: 15.78 | C50: 15.78 | D50: 17.15 | E50: 17.15 | G50: 16.8 | H50: 18.55 | J50: 46 | K50: 2.49
A51: 63 | B51: 16.47 | C51: 16.47 | D51: 17.79 | E51: 17.79 | G51: 17.52 | H51: 19.22 | J51: 47 | K51: 2.54
A52: 64 | B52: 17.21 | C52: 17.21 | D52: 18.45 | E52: 18.45 | G52: 18.29 | H52: 19.92 | J52: 48 | K52: 2.59
A53: 65 | B53: 17.32 | C53: 17.32 | D53: 18.48 | E53: 18.48 | G53: 18.42 | H53: 19.97 | J53: 49 | K53: 2.64
A54: 66 | B54: 16.78 | C54: 16.78 | D54: 17.85 | E54: 17.85 | G54: 17.88 | H54: 19.33 | J54: 50 | K54: 2.69
A55: 67 | B55: 16.24 | C55: 16.24 | D55: 17.21 | E55: 17.21 | G55: 17.34 | H55: 18.69
A56: 68 | B56: 15.69 | C56: 15.69 | D56: 16.56 | E56: 16.56 | G56: 16.79 | H56: 18.04
A57: 69 | B57: 15.13 | C57: 15.13 | D57: 15.92 | E57: 15.92 | G57: 16.23 | H57: 17.4
A58: 70 | B58: 14.58 | C58: 14.58 | D58: 15.29 | E58: 15.29 | G58: 15.67 | H58: 16.76
A59: 71 | B59: 14.02 | C59: 14.02 | D59: 14.66 | E59: 14.66 | G59: 15.11 | H59: 16.12
A60: 72 | B60: 13.46 | C60: 13.46 | D60: 14.04 | E60: 14.04 | G60: 14.55 | H60: 15.48
A61: 73 | B61: 12.9 | C61: 12.9 | D61: 13.41 | E61: 13.41 | G61: 13.98 | H61: 14.85
A62: 74 | B62: 12.34 | C62: 12.34 | D62: 12.81 | E62: 12.81 | G62: 13.42 | H62: 14.23
A63: 75 | B63: 12.07 | C63: 12.07 | D63: 12.51 | E63: 12.51 | G63: 13.13 | H63: 13.92
A66: AMC
B67: Yield
A68: Age | B68: 0 | C68: 0.01 | D68: 0.02 | E68: 0.03 | H68: Note
A69: 16 | B69: 1 | C69: 1 | D69: 1 | E69: 1 | H69: Added Pension factors revised July 2012
A70: 17 | B70: 1 | C70: 1 | D70: 1 | E70: 1
A71: 18 | B71: 1 | C71: 1 | D71: 1 | E71: 1
A72: 19 | B72: 1 | C72: 1 | D72: 1 | E72: 1 | H72: Factors updated to website in July 2012
A73: 20 | B73: 1 | C73: 1 | D73: 1 | E73: 1
A74: 21 | B74: 1 | C74: 1 | D74: 1 | E74: 1
A75: 22 | B75: 1 | C75: 1 | D75: 1 | E75: 1
A76: 23 | B76: 1 | C76: 1 | D76: 1 | E76: 1
A77: 24 | B77: 1 | C77: 1 | D77: 1 | E77: 1
A78: 25 | B78: 1 | C78: 1 | D78: 1 | E78: 1
A79: 26 | B79: 1 | C79: 1 | D79: 1 | E79: 1
A80: 27 | B80: 1 | C80: 1 | D80: 1 | E80: 1
A81: 28 | B81: 1 | C81: 1 | D81: 1 | E81: 1
A82: 29 | B82: 1 | C82: 1 | D82: 1 | E82: 1
A83: 30 | B83: 1 | C83: 1 | D83: 1 | E83: 1
A84: 31 | B84: 1 | C84: 1 | D84: 1 | E84: 1
A85: 32 | B85: 1 | C85: 1 | D85: 1 | E85: 1
A86: 33 | B86: 1 | C86: 1 | D86: 1 | E86: 1
A87: 34 | B87: 1 | C87: 1 | D87: 1 | E87: 1
A88: 35 | B88: 1 | C88: 1 | D88: 1 | E88: 1
A89: 36 | B89: 1 | C89: 1 | D89: 1 | E89: 1
A90: 37 | B90: 1 | C90: 1 | D90: 1 | E90: 1
A91: 38 | B91: 1 | C91: 1 | D91: 1 | E91: 1
A92: 39 | B92: 1 | C92: 1 | D92: 1 | E92: 1
A93: 40 | B93: 1 | C93: 1 | D93: 1 | E93: 1
A94: 41 | B94: 1 | C94: 1 | D94: 1 | E94: 1
A95: 42 | B95: 1 | C95: 1 | D95: 1 | E95: 1
A96: 43 | B96: 1 | C96: 1 | D96: 1 | E96: 1
A97: 44 | B97: 1 | C97: 1 | D97: 1 | E97: 1
A98: 45 | B98: 1 | C98: 1 | D98: 1 | E98: 1
A99: 46 | B99: 1 | C99: 1 | D99: 1 | E99: 1
A100: 47 | B100: 1 | C100: 1 | D100: 1 | E100: 1
A101: 48 | B101: 1 | C101: 1 | D101: 1 | E101: 1
A102: 49 | B102: 1 | C102: 1 | D102: 1 | E102: 1
A103: 50 | B103: 1 | C103: 1 | D103: 1 | E103: 1
A104: 51 | B104: 1 | C104: 1 | D104: 1 | E104: 1
A105: 52 | B105: 1 | C105: 1 | D105: 1 | E105: 1
A106: 53 | B106: 1 | C106: 1 | D106: 1 | E106: 1
A107: 54 | B107: 1 | C107: 1 | D107: 1 | E107: 1
A108: 55 | B108: 1 | C108: 1 | D108: 1 | E108: 1
A109: 56 | B109: 1 | C109: 1 | D109: 1 | E109: 1
A110: 57 | B110: 1 | C110: 1 | D110: 1 | E110: 1
A111: 58 | B111: 1 | C111: 1 | D111: 1 | E111: 1
A112: 59 | B112: 1 | C112: 1 | D112: 1 | E112: 1
A113: 60 | B113: 1 | C113: 1 | D113: 1 | E113: 1
A114: 61 | B114: 1 | C114: 1 | D114: 1 | E114: 1
A115: 62 | B115: 1 | C115: 1 | D115: 1 | E115: 1
A116: 63 | B116: 1 | C116: 1 | D116: 1 | E116: 1
A117: 64 | B117: 1 | C117: 1 | D117: 1 | E117: 1
A118: 65 | B118: 1 | C118: 1 | D118: 1 | E118: 1
A119: 66 | B119: 1 | C119: 1 | D119: 1 | E119: 1
A120: 67 | B120: 1 | C120: 1 | D120: 1 | E120: 1
A121: 68 | B121: 1 | C121: 1 | D121: 1 | E121: 1
A122: 69 | B122: 1 | C122: 1 | D122: 1 | E122: 1
A123: 70 | B123: 1 | C123: 1 | D123: 1 | E123: 1
A124: 71 | B124: 1 | C124: 1 | D124: 1 | E124: 1
A125: 72 | B125: 1 | C125: 1 | D125: 1 | E125: 1
A126: 73 | B126: 1 | C126: 1 | D126: 1 | E126: 1
A127: 74 | B127: 1 | C127: 1 | D127: 1 | E127: 1
A128: 75 | B128: 1 | C128: 1 | D128: 1 | E128: 1
